bitfinex/quotes_SOLUSD_20260214
["timestamp","ask_amount","ask_price","bid_price","bid_amount"]
[1771075842481,0.46501988,86.148,86.112,0.48787537]
[1771075842678,0.46501988,86.148,86.11,51.0]
[1771075842679,0.46501988,86.139,86.102,0.48787537]
[1771075842930,11.60782602,86.149,86.102,0.48787537]
[1771075843079,0.46501988,86.148,86.111,0.48787537]
[1771075843275,0.46501988,86.119,86.08,0.48787537]
[1771075843475,0.46501988,86.107,86.08,0.48787537]
[1771075843691,11.6133228,86.108,86.08,0.48787537]
[1771075843878,11.6133228,86.108,86.082,0.48787537]
[1771075845605,0.46501988,86.121,86.084,0.48787537]
[1771075845783,11.61170459,86.12,86.091,0.48787537]
[1771075847405,0.46501988,86.119,86.091,0.48787537]
[1771075848386,11.61197426,86.118,86.091,0.48787537]
[1771075848683,11.61197426,86.118,86.093,0.48787537]
[1771075849204,0.46501988,86.117,86.087,0.48787537]
[1771075849410,0.46501988,86.117,86.088,0.48787537]
[1771075850019,0.46501988,86.117,86.091,0.48787537]
[1771075850310,11.61224395,86.116,86.091,0.48787537]
[1771075851283,12.07726383,86.116,86.091,0.48787537]
[1771075851504,0.46501988,86.115,86.091,0.48787537]
[1771075852930,11.61251364,86.114,86.091,0.48787537]
[1771075854198,0.46501988,86.113,86.087,51.0]
[1771075854920,11.61278335,86.112,86.089,0.48787537]
[1771075855094,0.46501988,86.111,86.089,0.48787537]
[1771075856411,0.46501988,86.109,86.087,51.0]
[1771075857817,0.46501988,86.107,86.087,51.0]
[1771075859618,0.46501988,86.107,86.088,0.48787537]
[1771075859810,11.6127199,86.113,86.088,11.61602081]
[1771075860022,0.46501988,86.112,86.09,7.55798762]
[1771075860620,11.61209716,86.118,86.091,0.48787537]
[1771075860818,12.07648345,86.122,86.1,8.04586299]
[1771075861017,0.46501988,86.122,86.101,0.48787537]
[1771075861207,0.4695499,86.153,86.111,0.45771842]
[1771075864408,0.4695499,86.151,86.12,7.55798762]
[1771075864815,0.4695499,86.151,86.121,0.45771842]
[1771075866723,0.4695499,86.149,86.123,0.45771842]
[1771075866926,0.4695499,86.149,86.13,7.55798762]
[1771075867528,0.4695499,86.149,86.123,0.45771842]
[1771075868229,0.4695499,86.149,86.13,7.55798762]
[1771075868437,0.4695499,86.159,86.131,0.45771842]
[1771075868812,0.4695499,86.157,86.125,0.45771842]
[1771075869015,0.4695499,86.157,86.114,73.97020292]
[1771075870326,29.01434016,86.165,86.095,0.45771842]
[1771075870327,0.4695499,86.129,86.095,0.45771842]
[1771075871019,0.4695499,86.127,86.095,0.45771842]
[1771075871210,0.4695499,86.127,86.089,62.83584679]
[1771075871526,0.4695499,86.119,86.089,51.22]
[1771075871705,0.4695499,86.119,86.083,4.61729252]
[1771075872310,0.4695499,86.109,86.074,63.29561763]
[1771075872528,0.4695499,86.109,86.077,4.61729252]
[1771075872723,0.4695499,86.109,86.074,51.22]
[1771075872930,11.61467165,86.098,86.074,51.22]
[1771075873127,0.4695499,86.097,86.062,27.03708751]
[1771075873329,0.4695499,86.097,86.063,0.45771842]
[1771075874031,0.4695499,86.097,86.071,0.45771842]
[1771075874234,0.4695499,86.097,86.065,0.45771842]
[1771075875216,0.4695499,86.089,86.062,15.41764001]
[1771075875418,0.4695499,86.079,86.035,11.623159]
[1771075875719,0.45771842,86.069,86.035,11.623159]
[1771075877328,0.45771842,86.067,86.035,11.623159]
[1771075877526,0.45771842,86.049,86.03,0.2]
[1771075877732,0.45771842,86.059,86.03,0.2]
[1771075877933,0.45771842,86.067,86.032,0.45771842]
[1771075879136,11.61811433,86.073,86.034,0.45771842]
[1771075879343,11.61811433,86.073,86.033,11.62344681]
[1771075879344,12.07583275,86.073,86.041,0.45771842]
[1771075879521,0.45771842,86.073,86.041,0.45771842]
[1771075879842,11.61735891,86.079,86.041,0.45771842]
[1771075880216,12.07507733,86.079,86.041,0.45771842]
[1771075880542,0.45771842,86.078,86.041,0.45771842]
[1771075881244,11.61750525,86.077,86.043,0.45771842]
[1771075882744,0.45771842,86.077,86.043,0.45771842]
[1771075882964,0.45771842,86.093,86.043,0.45771842]
[1771075883240,47.68,86.104,86.03,0.2]
[1771075883241,0.45771842,86.116,86.049,40.6744994]
[1771075883439,11.61237879,86.115,86.053,0.45771842]
[1771075883752,11.6115849,86.121,86.057,4.61729252]
[1771075884051,11.6115849,86.121,86.052,4.61729252]
[1771075884052,11.6115849,86.121,86.06,0.45771842]
[1771075884339,11.6115849,86.121,86.065,0.45771842]
[1771075884545,15.09482511,86.117,86.065,0.45771842]
[1771075884730,3.48260788,86.117,86.065,0.45771842]
[1771075885525,0.45771842,86.115,86.067,0.45771842]
[1771075886538,11.61251364,86.114,86.068,40.66552028]
[1771075886736,11.61251364,86.114,86.069,0.45771842]
[1771075887543,3.02488946,86.117,86.069,0.45771842]
[1771075887846,3.02488946,86.117,86.072,0.45771842]
[1771075889748,11.61079112,86.127,86.077,0.45771842]
[1771075890128,0.45771842,86.126,86.077,0.45771842]
[1771075892054,0.45771842,86.126,86.079,0.47941271]
[1771075893228,0.45771842,86.126,86.08,40.65985129]
[1771075893436,0.45771842,86.109,86.074,0.47941271]
[1771075896229,0.45771842,86.109,86.075,11.61777519]
[1771075896430,0.45771842,86.109,86.076,0.47941271]
[1771075896657,0.45771842,86.107,86.076,0.47941271]
[1771075898336,0.45771842,86.107,86.078,0.47941271]
[1771075898537,11.61310472,86.11,86.078,0.47941271]
[1771075898752,11.61248381,86.115,86.078,0.47941271]
[1771075900248,11.61248381,86.115,86.065,4.61729252]
[1771075900249,0.45771842,86.109,86.073,0.47941271]
[1771075900450,7.55541261,86.11,86.073,0.47941271]
[1771075900451,0.45771842,86.107,86.073,0.47941271]
[1771075901245,0.45771842,86.107,86.074,11.61791017]
[1771075902756,0.45771842,86.099,86.067,0.47982978]
[1771075904568,0.45771842,86.106,86.068,11.61872008]
[1771075904771,0.45771842,86.106,86.069,0.47982978]
[1771075905062,0.45771842,86.116,86.069,0.47982978]
[1771075906368,0.45771842,86.114,86.071,0.47982978]
[1771075909871,0.45771842,86.112,86.073,0.47982978]
[1771075910576,0.45771842,86.112,86.074,0.47982978]
[1771075910957,0.45771842,86.129,86.077,0.47982978]
[1771075911263,0.45771842,86.129,86.081,4.61729252]
[1771075911465,0.45771842,86.129,86.082,0.47982978]
[1771075912469,11.61062604,86.128,86.084,0.47982978]
[1771075912668,0.45771842,86.142,86.087,0.47982978]
[1771075913053,12.06551421,86.149,86.087,0.47982978]
[1771075913371,0.45771842,86.148,86.096,0.47982978]
[1771075913754,0.45771842,86.155,86.096,0.47982978]
[1771075914467,12.06484055,86.154,86.101,0.47982978]
[1771075914675,0.45771842,86.153,86.106,0.47982978]
[1771075916678,11.60739158,86.152,86.111,0.47982978]
[1771075917375,0.45771842,86.151,86.111,0.47982978]
[1771075918572,11.60766105,86.15,86.116,0.47982978]
[1771075919882,0.45771842,86.149,86.116,0.47982978]
[1771075922170,46.38827755,86.229,86.112,73.51278335]
[1771075922171,0.45771842,86.139,86.112,61.44228158]
[1771075922382,3.02037802,86.13,86.095,0.5]
[1771075922586,3.02037802,86.13,86.095,5.11729252]
[1771075922777,3.02037802,86.13,86.088,52.08]
[1771075922978,3.02037802,86.13,86.089,11.61588588]
[1771075923464,3.02037802,86.13,86.09,0.5]
[1771075923889,3.02037802,86.13,86.089,11.61588588]
[1771075923890,40.62775687,86.148,86.093,0.5]
[1771075924183,40.62775687,86.148,86.096,0.5]
[1771075925466,40.62775687,86.148,86.097,11.61480655]
[1771075925674,40.62775687,86.148,86.098,0.5]
[1771075925883,40.62775687,86.148,86.1,0.5]
[1771075926383,40.62775687,86.148,86.103,0.5]
[1771075927963,40.62256989,86.159,86.105,0.5]
[1771075928365,11.60644854,86.159,86.108,0.5]
[1771075928988,11.60644854,86.159,86.112,0.5]
[1771075929777,11.60496692,86.17,86.112,0.5]
[1771075929977,11.60375497,86.179,86.114,0.5]
[1771075931190,11.60375497,86.179,86.119,0.5]
[1771075931380,40.6131424,86.179,86.119,0.5]
[1771075933376,0.1,86.18,86.124,0.5]
[1771075933695,11.60240866,86.189,86.135,0.5]
[1771075933875,11.60240866,86.189,86.136,0.5]
[1771075934072,40.60843031,86.189,86.141,0.5]
[1771075936176,40.60843031,86.189,86.15,14.62639992]
[1771075936877,40.60843031,86.189,86.15,11.60760557]
[1771075938805,40.60843031,86.189,86.151,0.5]
[1771075939474,11.60240866,86.189,86.16,3.01879435]
[1771075939682,11.60240866,86.189,86.161,0.5]
[1771075940081,40.60843031,86.189,86.157,51.68]
[1771075940377,40.60843031,86.189,86.15,11.60760557]
[1771075941296,11.60375497,86.179,86.15,11.60760557]
[1771075942608,40.60843031,86.189,86.15,12.10760557]
[1771075943097,40.60843031,86.189,86.151,0.5]
[1771075944907,40.60843031,86.189,86.152,12.10739158]
[1771075945589,40.60843031,86.189,86.153,0.5]
[1771075949489,40.60843031,86.189,86.155,0.5]
[1771075950102,40.60843031,86.189,86.154,11.60712213]
[1771075950103,40.60843031,86.189,86.161,0.5]
[1771075950688,11.60240866,86.189,86.161,0.5]
[1771075951088,11.59581622,86.238,86.181,0.5]
[1771075951408,40.58535679,86.238,86.191,0.5]
[1771075951913,40.58535679,86.238,86.201,0.5]
[1771075953401,40.58535679,86.238,86.203,0.5]
[1771075953700,11.59581622,86.238,86.211,0.5]
[1771075954588,3.01507627,86.23,86.199,51.96]
[1771075955512,11.59702652,86.229,86.201,0.5]
[1771075958095,40.58488618,86.239,86.201,0.5]
[1771075958408,3.01507627,86.23,86.187,0.5]
[1771075958707,3.01507627,86.23,86.189,0.5]
[1771075958909,3.01507627,86.23,86.191,0.5]
[1771075960205,40.58959282,86.229,86.191,0.5]
[1771075960914,40.58959282,86.229,86.191,12.10201917]
[1771075961105,11.59702652,86.229,86.192,0.5]
[1771075962596,40.58582742,86.237,86.194,0.5]
[1771075962796,3.01507627,86.23,86.194,0.5]
[1771075963021,40.58582742,86.237,86.201,0.5]
[1771075963418,11.59595069,86.237,86.201,0.5]
[1771075964604,40.58582742,86.237,86.201,0.5]
[1771075965025,40.58582742,86.237,86.203,0.5]
[1771075965531,3.01507627,86.23,86.194,0.5]
[1771075968029,11.59702652,86.229,86.195,0.5]
[1771075969717,28.98987673,86.237,86.197,0.5]
[1771075970124,3.01507627,86.23,86.197,0.5]
[1771075970426,28.98987673,86.237,86.197,0.5]
[1771075971902,28.98987673,86.237,86.2,3.01507627]
[1771075972102,28.98987673,86.237,86.201,0.5]
[1771075972303,3.01507627,86.23,86.201,0.5]
[1771075974326,11.59702652,86.229,86.201,0.5]
[1771075975601,11.59702652,86.229,86.202,0.5]
[1771075976004,40.58959282,86.229,86.202,0.5]
[1771075976205,40.58959282,86.229,86.187,11.6026137]
[1771075976206,3.01507627,86.22,86.191,0.5]
[1771075978427,11.59716101,86.228,86.191,0.5]
[1771075979008,11.59716101,86.228,86.192,11.60200482]
[1771075979214,11.59716101,86.228,86.193,0.5]
[1771075980134,11.59716101,86.228,86.201,0.5]
[1771075980729,43.69962483,86.24,86.201,0.5]
[1771075981725,43.69962483,86.24,86.203,0.5]
[1771075983336,3.01507627,86.22,86.191,0.5]
[1771075983717,3.01507627,86.23,86.191,0.5]
[1771075985736,87.66959282,86.229,86.19,14.6172564]
[1771075985921,87.66959282,86.229,86.191,0.5]
[1771075986934,11.59729551,86.227,86.191,0.5]
[1771075987732,11.59729551,86.227,86.193,0.5]
[1771075988335,40.59053428,86.227,86.193,0.5]
[1771075991327,3.01507627,86.22,86.193,0.5]
[1771075993342,11.59837158,86.219,86.193,0.5]
[1771075994017,3.01507627,86.21,86.181,11.60338973]
[1771075994531,50.31507627,86.21,86.182,0.5]
[1771075994834,47.3,86.21,86.182,0.5]
[1771075995036,11.59971696,86.209,86.184,0.5]
[1771075996035,3.01507627,86.22,86.184,0.5]
[1771075996238,11.59702652,86.229,86.201,0.5]
[1771075998343,47.32,86.235,86.202,11.60065891]
[1771075998344,11.5963541,86.234,86.202,11.60065891]
[1771075998646,11.5963541,86.234,86.211,0.5]
[1771075999448,11.59469653,86.247,86.221,0.49203678]
[1771075999751,0.1,86.25,86.231,0.49203678]
[1771075999941,11.59323078,86.258,86.231,0.49203678]
[1771076000251,0.1,86.26,86.241,0.49203678]
[1771076001752,0.5,86.33,86.27,3.01507627]
[1771076001948,11.58334108,86.331,86.25,3.01507627]
[1771076001949,3.01507627,86.32,86.28,3.01507627]
[1771076002147,3.01507627,86.3,86.271,51.96]
[1771076002451,0.5,86.299,86.273,6.03885317]
[1771076003753,0.5,86.307,86.28,3.01507627]
[1771076003956,0.5,86.316,86.281,8.63604422]
[1771076004149,0.5,86.316,86.282,8.63604422]
[1771076004449,0.5,86.316,86.283,8.63604422]
[1771076004654,0.5,86.316,86.284,8.63604422]
[1771076004953,0.5,86.316,86.285,8.63604422]
[1771076005255,0.5,86.314,86.286,8.63604422]
[1771076005554,3.01507627,86.32,86.287,8.63604422]
[1771076005748,3.01507627,86.32,86.286,11.58929415]
[1771076005749,3.51507627,86.32,86.288,8.63604422]
[1771076005929,0.5,86.319,86.289,8.63604422]
[1771076006131,0.5,86.319,86.29,8.63604422]
[1771076006452,0.5,86.318,86.291,8.63604422]
[1771076006653,0.5,86.309,86.28,11.59005342]
[1771076006953,0.5,86.309,86.28,14.60512969]
[1771076007158,0.5,86.309,86.274,11.59097758]
[1771076007452,0.5,86.307,86.274,11.59097758]
[1771076011634,0.5,86.299,86.271,4.61729252]
[1771076011836,0.5,86.299,86.272,11.59124629]
[1771076015950,11.58664112,86.307,86.272,11.59124629]
[1771076016545,11.58664112,86.307,86.273,0.45563878]
[1771076016744,11.58664112,86.307,86.281,0.45563878]
[1771076016954,11.58664112,86.307,86.28,3.01020436]
[1771076017150,11.58664112,86.307,86.272,11.59124629]
[1771076017351,3.01020436,86.3,86.272,11.59124629]
[1771076017950,0.48641202,86.279,86.251,11.59398016]
[1771076019355,0.48641202,86.279,86.244,28.98741556]
[1771076019356,0.48641202,86.279,86.253,11.59379963]
[1771076019539,0.48641202,86.279,86.254,0.45563878]
[1771076020058,0.48641202,86.279,86.253,11.59379963]
[1771076020941,0.48641202,86.279,86.253,12.04429075]
[1771076021143,0.48641202,86.279,86.254,0.45049112]
[1771076022044,0.48455334,86.277,86.253,11.59379963]
[1771076022946,0.48455334,86.277,86.248,11.59434628]
[1771076023566,0.48455334,86.277,86.252,31.10136664]
[1771076025461,0.48455334,86.275,86.252,31.10136664]
[1771076025761,0.48455334,86.275,86.23,3.01020436]
[1771076025963,0.48455334,86.29,86.261,0.45049112]
[1771076026160,0.48455334,86.29,86.231,40.5886514]
[1771076026161,0.48455334,86.309,86.281,0.45049112]
[1771076026365,0.48455334,86.309,86.29,3.01020436]
[1771076027474,11.58570726,86.314,86.29,3.46069548]
[1771076028078,11.58570726,86.314,86.291,0.45049112]
[1771076028377,154.3125678,86.907,86.273,33.59492166]
[1771076028378,47.80455334,86.325,86.3,3.01020436]
[1771076028672,0.48455334,86.325,86.3,3.01020436]
[1771076028879,0.48455334,86.325,86.3,3.46069548]
[1771076029553,11.58426393,86.324,86.3,3.46069548]
[1771076029959,12.06881727,86.324,86.3,3.46069548]
[1771076030477,12.06881727,86.324,86.3,15.04806647]
[1771076030656,12.06881727,86.324,86.3,3.46069548]
[1771076031258,0.48455334,86.323,86.3,3.46069548]
[1771076031463,0.48455334,86.321,86.295,11.5881569]
[1771076031777,0.48455334,86.321,86.295,12.03864802]
[1771076034463,0.48455334,86.319,86.28,3.01020436]
[1771076034773,0.48455334,86.319,86.281,0.45049112]
[1771076035552,0.48455334,86.317,86.281,0.45049112]
[1771076035758,0.48455334,86.317,86.282,12.04039399]
[1771076036265,47.84455334,86.317,86.282,12.04039399]
[1771076036569,0.48455334,86.316,86.282,12.04039399]
[1771076036770,0.48455334,86.316,86.283,0.45049112]
[1771076037282,47.36,86.315,86.283,0.45049112]
[1771076037481,0.48455334,86.314,86.283,0.45049112]
[1771076038382,0.48455334,86.312,86.283,0.45049112]
[1771076038876,0.48455334,86.309,86.281,12.04052832]
[1771076040179,0.48455334,86.309,86.282,0.45049112]
[1771076040878,12.07085183,86.309,86.284,0.45049112]
[1771076041577,0.49953232,86.308,86.284,0.45049112]
[1771076042180,0.49953232,86.308,86.27,28.97861003]
[1771076042181,0.49953232,86.289,86.252,0.49174968]
[1771076042474,3.01020436,86.29,86.252,0.49174968]
[1771076042681,11.5865457,86.307,86.253,0.49174968]
[1771076042682,3.01020436,86.28,86.253,0.49174968]
[1771076044087,14.60043197,86.28,86.255,0.49174968]
[1771076044270,15.09996429,86.28,86.255,0.49174968]
[1771076044468,0.49953232,86.279,86.255,0.49174968]
[1771076047161,0.49953232,86.277,86.255,0.49174968]
[1771076047370,0.49953232,86.277,86.238,0.49174968]
[1771076049291,0.49953232,86.275,86.24,0.49174968]
[1771076051287,12.0905099,86.274,86.242,0.49174968]
[1771076051481,0.49953232,86.273,86.242,0.49174968]
[1771076052392,0.49953232,86.281,86.242,0.49174968]
[1771076052992,12.08964941,86.281,86.242,0.49174968]
[1771076053292,0.49953232,86.28,86.244,0.49174968]
[1771076055095,12.08889791,86.286,86.247,0.49174968]
[1771076055389,12.08889791,86.286,86.248,11.59447175]
[1771076055581,12.08889791,86.286,86.252,0.49174968]
[1771076055896,0.49953232,86.285,86.252,0.49174968]
[1771076057182,0.49953232,86.284,86.252,0.49174968]
[1771076058597,0.49953232,86.269,86.239,11.59561671]
[1771076058793,0.49953232,86.259,86.234,11.59625917]
[1771076059477,0.49953232,86.249,86.232,15.62417368]
[1771076059788,47.46,86.248,86.213,0.49174968]
[1771076059998,3.01171353,86.24,86.214,0.49976616]
[1771076060304,98.51303269,86.283,86.214,0.49976616]
[1771076060490,11.59299319,86.259,86.216,0.49976616]
[1771076060696,11.59299319,86.259,86.219,0.49976616]
[1771076060912,3.01171353,86.25,86.219,0.49976616]
[1771076061195,11.59299319,86.259,86.219,0.49976616]
[1771076062594,11.59299319,86.259,86.22,11.59823706]
[1771076062902,11.59299319,86.259,86.221,0.49976616]
[1771076064006,11.59299319,86.259,86.22,11.59823706]
[1771076064007,3.01171353,86.28,86.226,0.49976616]
[1771076064201,3.01171353,86.29,86.226,0.49976616]
[1771076064404,3.01171353,86.29,86.231,0.49976616]
[1771076064605,3.01171353,86.29,86.232,0.49976616]
[1771076066385,11.58896267,86.289,86.237,0.49976616]
[1771076066587,3.01171353,86.28,86.237,0.49976616]
[1771076070395,3.01171353,86.28,86.242,0.49976616]
[1771076071007,3.01171353,86.28,86.242,61.9]
[1771076071310,3.01171353,86.28,86.243,0.49976616]
[1771076072496,11.58896267,86.289,86.244,11.5950095]
[1771076072696,3.01171353,86.28,86.245,0.49976616]
[1771076073916,11.58896267,86.289,86.245,0.49976616]
[1771076076012,11.58896267,86.289,86.249,4.61729252]
[1771076076213,11.58896267,86.289,86.25,0.49976616]
[1771076077601,3.01185974,86.28,86.25,0.49976616]
[1771076078617,3.01185974,86.29,86.251,11.59406847]
[1771076078827,3.01185974,86.29,86.252,0.49976616]
[1771076079420,3.01185974,86.28,86.252,0.49976616]
[1771076079615,3.0117135,86.31,86.255,0.49976616]
[1771076079822,3.01185974,86.31,86.26,0.49976616]
[1771076080315,11.58627721,86.309,86.264,0.49976616]
[1771076080809,11.58627721,86.309,86.269,0.49976616]
[1771076082034,3.01185974,86.3,86.269,0.49976616]
[1771076083628,11.58627721,86.309,86.271,0.49976616]
[1771076084329,3.01185974,86.33,86.274,0.49976616]
[1771076084622,3.01185974,86.33,86.279,0.49976616]
[1771076085327,47.42,86.329,86.279,0.49976616]
[1771076085909,3.01185974,86.34,86.284,0.49976616]
[1771076086110,47.42,86.344,86.284,0.49976616]
[1771076086312,3.01185974,86.34,86.289,0.49976616]
[1771076087332,3.01185974,86.34,86.29,0.49976616]
[1771076088023,3.01185974,86.34,86.292,0.49976616]
[1771076088330,3.01185974,86.32,86.292,0.49976616]
[1771076088524,3.01185974,86.32,86.291,11.58869407]
[1771076088720,47.42,86.327,86.291,11.58869407]
[1771076088913,47.42,86.327,86.292,0.49976616]
[1771076089933,11.58399555,86.326,86.293,11.58842548]
[1771076091233,47.44,86.33,86.293,0.49976616]
[1771076092527,11.58359299,86.329,86.294,11.58829119]
[1771076092727,11.58359299,86.329,86.295,0.49976616]
[1771076094828,11.58359299,86.329,86.297,0.49976616]
[1771076095727,3.01185974,86.32,86.284,0.49976616]
[1771076095910,3.01185974,86.32,86.284,12.08928275]
[1771076096233,3.01185974,86.31,86.284,0.49976616]
[1771076096407,3.01185974,86.31,86.278,0.49976616]
[1771076096833,11.58627721,86.309,86.278,11.59038585]
[1771076097038,11.58627721,86.309,86.279,0.49976616]
[1771076098056,47.46,86.314,86.281,0.49976616]
[1771076098341,47.46,86.328,86.281,0.49976616]
[1771076099642,3.01185974,86.32,86.283,0.49976616]
[1771076101424,11.58386136,86.327,86.283,0.49976616]
[1771076101623,11.58386136,86.327,86.284,11.58963423]
[1771076101926,11.58386136,86.327,86.285,0.49976616]
[1771076103754,57.90599794,86.347,86.283,61.9]
[1771076103755,11.58225135,86.339,86.29,0.49976616]
[1771076103960,11.58225135,86.339,86.292,0.49976616]
[1771076104952,11.58171478,86.343,86.294,0.49976616]
[1771076105420,11.58171478,86.343,86.299,0.49976616]
[1771076105737,3.01185974,86.34,86.299,0.49976616]
[1771076106948,11.5823855,86.338,86.301,0.49976616]
[1771076108050,47.54,86.337,86.301,0.49976616]
[1771076108750,11.5823855,86.338,86.303,0.49976616]
[1771076110738,11.5823855,86.338,86.305,0.49976616]
[1771076110935,3.01185974,86.33,86.299,0.49976616]
[1771076111138,3.01185974,86.31,86.281,0.49976616]
[1771076111949,3.01185974,86.3,86.273,0.49976616]
[1771076112730,3.01185974,86.29,86.266,0.49976616]
[1771076112934,40.55666924,86.299,86.266,0.49976616]
[1771076113252,11.58761978,86.299,86.268,0.49976616]
[1771076115532,11.58761978,86.299,86.27,0.49976616]
[1771076116147,3.01185974,86.29,86.27,0.49976616]
[1771076116549,40.55666924,86.299,86.27,0.49976616]
[1771076116847,3.01185974,86.29,86.254,53.21976616]
[1771076117039,3.01185974,86.29,86.257,0.49976616]
[1771076117350,11.58896267,86.289,86.259,0.49976616]
[1771076120650,11.58761978,86.299,86.261,0.49976616]
[1771076121355,47.58,86.306,86.261,0.49976616]
[1771076122742,11.5868142,86.305,86.263,0.49976616]
[1771076122949,3.01185974,86.3,86.263,0.49976616]
[1771076125164,3.01185974,86.29,86.265,0.49976616]
[1771076126467,11.58761978,86.299,86.265,0.49976616]
[1771076129346,11.58761978,86.299,86.267,0.49976616]
[1771076130697,11.58711396,86.303,86.267,0.49976616]
[1771076130974,11.58711396,86.303,86.266,40.5721837]
[1771076130975,11.5865457,86.307,86.269,0.49976616]
[1771076131870,11.5865457,86.307,86.271,0.49976616]
[1771076132942,3.01185974,86.3,86.258,4.61729252]
[1771076133154,3.01185974,86.29,86.259,0.49976616]
[1771076135252,11.58862735,86.292,86.259,0.49976616]
[1771076135664,11.58761978,86.299,86.261,0.49976616]
[1771076136656,40.55666924,86.299,86.261,0.49976616]
[1771076137572,11.58761978,86.299,86.261,0.49976616]
[1771076138065,11.58761978,86.299,86.262,11.59259001]
[1771076138246,11.58761978,86.299,86.263,0.49976616]
[1771076139364,28.96569531,86.309,86.265,0.49976616]
[1771076141880,3.01071346,86.3,86.267,0.49976616]
[1771076144275,11.58761978,86.299,86.267,0.49976616]
[1771076145783,11.58761978,86.299,86.269,0.49976616]
[1771076146976,40.55197252,86.309,86.271,0.49976616]
[1771076149762,3.01071346,86.3,86.271,0.49976616]
[1771076150269,3.01071346,86.3,86.273,0.49976616]
[1771076150870,3.01071346,86.3,86.272,11.59124629]
[1771076151781,11.58761978,86.299,86.271,0.49976616]
[1771076152789,11.58636734,86.309,86.271,0.49976616]
[1771076154167,3.01071346,86.3,86.273,0.49976616]
[1771076155166,28.96569303,86.309,86.273,0.49976616]
[1771076155577,3.01071346,86.3,86.27,11.59138438]
[1771076155780,3.01071346,86.3,86.271,0.49976616]
[1771076156486,11.58761978,86.299,86.271,0.49976616]
[1771076157185,11.58761978,86.299,86.272,12.09101245]
[1771076157391,11.58761978,86.299,86.273,0.49976616]
[1771076159168,3.01071346,86.29,86.262,11.59248751]
[1771076160191,40.55666924,86.299,86.263,0.49976616]
[1771076163689,40.55666924,86.299,86.264,11.59232124]
[1771076163898,40.55666924,86.299,86.265,0.49976616]
[1771076166378,11.58761978,86.299,86.267,0.49976616]
[1771076168900,40.55197024,86.309,86.268,11.59178374]
[1771076169214,40.55197024,86.309,86.269,0.49976616]
[1771076172100,40.55197024,86.309,86.271,0.49976616]
[1771076175910,11.58627721,86.309,86.273,0.49976616]
[1771076177605,11.58627721,86.309,86.275,0.49976616]
[1771076178696,11.58627721,86.309,86.276,11.59070888]
[1771076178903,11.58627721,86.309,86.277,0.49976616]
[1771076181108,11.58627721,86.309,86.279,0.49976616]
[1771076181489,31.96954706,86.33,86.279,0.49976616]
[1771076181704,31.96954706,86.33,86.281,0.49976616]
[1771076182408,31.96954706,86.33,86.283,0.49976616]
[1771076182617,31.96954706,86.33,86.279,61.9]
[1771076182618,11.58359299,86.329,86.286,0.49976616]
[1771076183988,3.01071346,86.34,86.289,0.49976616]
[1771076184192,3.01071346,86.33,86.291,0.49976616]
[1771076185105,11.58359299,86.329,86.293,0.49976616]
[1771076187608,11.58359299,86.329,86.295,0.49976616]
[1771076188614,11.58359299,86.329,86.296,0.49976616]
[1771076189803,11.5823855,86.338,86.297,11.58788833]
[1771076190015,11.5823855,86.338,86.298,0.49976616]
[1771076190516,11.58177861,86.343,86.299,53.82]
[1771076190701,3.01071346,86.34,86.3,0.49976616]
[1771076190902,3.01071346,86.34,86.302,0.49976616]
[1771076191792,11.58225135,86.339,86.303,11.58708272]
[1771076191995,11.58225135,86.339,86.304,0.49976616]
[1771076194225,11.58144652,86.345,86.306,0.49976616]
[1771076196407,40.53506282,86.345,86.306,0.49976616]
[1771076196614,40.53506282,86.345,86.308,0.49976616]
[1771076197300,11.58144652,86.345,86.308,0.49976616]
[1771076197734,11.58144652,86.345,86.307,40.55290995]
[1771076197735,11.58144652,86.345,86.31,0.49976616]
[1771076198250,11.68084499,86.35,86.311,0.49976616]
[1771076198521,0.1,86.35,86.313,0.49976616]
[1771076198722,0.1,86.35,86.316,0.49976616]
[1771076198926,0.1,86.35,86.321,0.49976616]
[1771076199129,11.579569,86.359,86.322,0.48335314]
[1771076199307,11.579569,86.359,86.324,0.48335314]
[1771076200521,0.1,86.36,86.329,0.46491716]
[1771076202618,0.1,86.36,86.331,0.46491716]
[1771076202924,0.10046768,86.359,86.331,0.46491716]
[1771076203612,0.1,86.36,86.331,0.46491716]
[1771076204337,0.1,86.36,86.333,0.46491716]
[1771076206030,0.1,86.36,86.335,0.46491716]
[1771076208132,0.1,86.36,86.337,0.46491716]
[1771076208737,0.1,86.36,86.339,0.46491716]
[1771076209916,0.1,86.36,86.341,12.04690022]
[1771076212413,0.1,86.36,86.342,0.46491716]
[1771076215436,0.1,86.36,86.344,0.46491716]
[1771076217434,0.1,86.36,86.346,0.46491716]
[1771076218318,0.10046768,86.359,86.34,11.58201228]
[1771076218929,0.10046768,86.359,86.326,128.06387757]